bitfinex/quotes_ETHUSD_20250721
["timestamp","ask_amount","ask_price","bid_price","bid_amount"]
[1753072432073,0.132,3765.6,3765.3,4.152]
[1753072432074,0.132,3765.6,3765.3,6.80782713]
[1753072432250,3.7584,3766.2,3765.5,0.4649]
[1753072432440,0.132,3765.9,3765.5,0.4649]
[1753072432641,1e-08,3766.4,3766.0,2.6553146]
[1753072432865,0.13200001,3766.4,3766.0,2.6553146]
[1753072433083,0.13200001,3766.4,3766.1,3.12016495]
[1753072433394,0.13200001,3766.4,3766.1,0.4649]
[1753072433946,0.13200001,3766.4,3766.0,2.65533722]
[1753072434195,0.13200001,3766.4,3766.2,0.4649]
[1753072434858,0.13200001,3766.4,3766.2,3.12008894]
[1753072435072,0.13200001,3766.4,3765.9,4.151]
[1753072435249,0.13200001,3766.4,3766.3,3.12002572]
[1753072435644,0.13200001,3766.4,3766.3,0.4649]
[1753072436050,0.13200001,3766.4,3766.3,3.12002572]
[1753072438194,0.13200001,3766.4,3766.3,0.4649]
[1753072438693,0.13200001,3766.4,3766.3,3.12002572]
[1753072438912,1e-08,3766.4,3766.3,3.88304414]
[1753072439110,1e-08,3766.4,3766.3,3.85649289]
[1753072439691,1e-08,3766.4,3766.3,1.20136717]
[1753072439881,1e-08,3766.4,3766.3,0.4649]
[1753072440623,1e-08,3766.4,3766.3,3.12002572]
[1753072442278,1e-08,3766.4,3766.3,0.4649]
[1753072442478,1e-08,3766.4,3766.3,3.12002572]
[1753072442688,0.75840001,3766.4,3766.1,0.132]
[1753072442909,1e-08,3766.4,3766.2,4.149]
[1753072443709,1e-08,3766.4,3766.1,4.148]
[1753072444779,1e-08,3766.4,3766.3,2.65512572]
[1753072445215,1e-08,3766.4,3766.3,0.132]
[1753072445412,1e-08,3766.4,3766.3,4.6119]
[1753072446024,1e-08,3766.4,3766.3,7.26702572]
[1753072446687,1e-08,3766.4,3766.3,8.16182572]
[1753072446882,1e-08,3766.4,3766.3,9.60971095]
[1753072451285,1e-08,3766.4,3766.3,8.60971095]
[1753072451989,1e-08,3766.4,3766.3,9.14281095]
[1753072453406,1e-08,3766.4,3766.3,9.57891095]
[1753072454929,1e-08,3766.4,3766.3,5.43391095]
[1753072455231,1e-08,3766.4,3766.3,9.57791095]
[1753072457191,1e-08,3766.4,3766.3,5.43391095]
[1753072457444,1e-08,3766.4,3766.3,9.57691095]
[1753072458650,1e-08,3766.4,3766.3,2.78712572]
[1753072458803,1e-08,3766.4,3766.3,4.274]
[1753072459146,1e-08,3766.4,3766.3,7.36522572]
[1753072459445,1e-08,3766.4,3766.3,3.22322572]
[1753072459646,1e-08,3766.4,3766.3,7.36522572]
[1753072459845,1e-08,3766.4,3766.3,9.98414599]
[1753072462644,1e-08,3766.4,3766.3,5.40604599]
[1753072462816,1e-08,3766.4,3766.3,2.78712572]
[1753072463206,1e-08,3766.4,3766.3,6.92812572]
[1753072465000,1e-08,3766.4,3766.3,11.02599433]
[1753072465722,1e-08,3766.4,3766.3,11.02699433]
[1753072468038,1e-08,3766.4,3766.3,2.78812572]
[1753072468207,1e-08,3766.4,3766.3,6.92812572]
[1753072469449,1e-08,3766.4,3766.3,0.001]
[1753072469744,1e-08,3766.4,3766.3,6.79512572]
[1753072471320,0.46810001,3766.4,3766.3,4.14]
[1753072471523,0.46810001,3766.4,3766.3,0.001]
[1753072471726,3.91465523,3766.4,3766.3,0.001]
[1753072472310,1.25960001,3766.4,3766.3,0.001]
[1753072473117,1.25960001,3766.4,3766.3,2.65612572]
[1753072473118,0.79150001,3766.4,3766.3,2.65612572]
[1753072473319,1e-08,3766.4,3766.3,2.65612572]
[1753072474458,1e-08,3766.4,3766.3,9.07481926]
[1753072475882,1e-08,3766.6,3766.5,2.65498473]
[1753072476057,1e-08,3766.6,3766.5,13.01863572]
[1753072476245,1e-08,3766.6,3766.5,17.11018588]
[1753072477746,0.002,3767.2,3767.1,2.65456186]
[1753072478066,0.002,3767.2,3767.1,7.99351805]
[1753072478234,0.002,3767.2,3767.1,8.42961805]
[1753072479282,0.002,3767.4,3767.3,2.65442093]
[1753072479568,0.002,3767.4,3767.3,6.81696513]
[1753072479869,0.002,3767.4,3767.3,7.35852093]
[1753072480033,0.002,3767.4,3767.3,9.06509494]
[1753072481705,0.002,3767.4,3767.3,9.89379494]
[1753072483657,0.002,3767.4,3767.3,12.89379494]
[1753072486364,0.002,3767.4,3767.3,12.89179494]
[1753072486563,0.002,3767.4,3767.3,17.65179494]
[1753072486862,0.002,3767.4,3767.3,14.65079494]
[1753072487906,0.002,3767.4,3767.3,10.51779494]
[1753072488207,0.002,3767.4,3767.3,14.21469494]
[1753072488569,0.002,3767.4,3767.3,10.53349494]
[1753072488765,0.002,3767.4,3767.3,14.66649494]
[1753072489110,0.002,3767.4,3767.3,17.66649494]
[1753072491587,0.02,3767.9,3767.8,3.46756868]
[1753072491781,0.02,3767.9,3767.8,8.23828135]
[1753072492106,0.02,3767.9,3767.8,8.79554067]
[1753072495348,0.02,3767.9,3767.8,8.34374067]
[1753072497736,0.02,3767.9,3767.8,7.53024067]
[1753072498445,0.02,3767.9,3767.8,3.39824067]
[1753072498645,0.02,3767.9,3767.8,2.78606868]
[1753072498947,0.4598,3767.9,3767.8,6.91506868]
[1753072499318,0.02,3767.9,3767.8,6.91506868]
[1753072501573,0.02,3767.9,3767.8,0.132]
[1753072501574,0.4598,3767.9,3767.8,0.132]
[1753072501854,0.4598,3767.9,3767.8,4.128]
[1753072502024,0.4598,3767.9,3767.8,6.78206868]
[1753072503732,0.4598,3767.9,3767.8,4.128]
[1753072503932,0.4598,3767.9,3767.8,6.78206868]
[1753072504244,0.4598,3767.9,3767.8,2.65406868]
[1753072504440,0.4598,3767.9,3767.8,4.128]
[1753072504667,0.4598,3767.9,3767.8,6.78206868]
[1753072505455,0.4598,3767.9,3767.8,6.78106868]
[1753072506532,0.4598,3767.9,3767.8,4.127]
[1753072507665,0.4598,3767.9,3767.8,6.78106868]
[1753072509449,0.02,3767.9,3767.8,6.78106868]
[1753072509781,0.02,3767.9,3767.8,6.91306868]
[1753072510566,0.02,3767.9,3767.8,8.7485091]
[1753072511074,0.022,3767.9,3767.8,8.7485091]
[1753072512371,1e-08,3768.2,3768.1,7.03305738]
[1753072512574,1e-08,3768.2,3768.1,14.81209593]
[1753072512888,1e-08,3768.2,3768.1,15.24919593]
[1753072513066,1e-08,3768.2,3768.1,17.87672986]
[1753072513482,1e-08,3768.2,3768.1,13.75172986]
[1753072513772,1e-08,3768.2,3768.1,17.87672986]
[1753072515503,1e-08,3768.2,3768.1,9.11059131]
[1753072515710,1e-08,3768.2,3768.1,9.54769131]
[1753072515871,1e-08,3768.2,3768.1,13.67169131]
[1753072517062,1e-08,3768.2,3768.1,9.54769131]
[1753072517263,1e-08,3768.2,3768.1,13.67069131]
[1753072517497,1e-08,3768.2,3768.1,9.54769131]
[1753072517701,1e-08,3768.2,3768.1,13.67069131]
[1753072518904,1e-08,3768.2,3768.1,9.11059131]
[1753072519201,1e-08,3768.2,3768.1,13.23359131]
[1753072519408,1e-08,3768.2,3768.1,13.67069131]
[1753072519610,1e-08,3768.2,3768.1,14.22069131]
[1753072520178,1e-08,3768.2,3768.1,18.98069131]
[1753072521483,1e-08,3768.2,3768.1,14.85769131]
[1753072521678,1e-08,3768.2,3768.1,18.97969131]
[1753072521873,1e-08,3768.2,3768.1,14.85769131]
[1753072522209,1e-08,3768.2,3768.1,18.97969131]
[1753072522409,0.002,3768.7,3768.6,6.40530528]
[1753072522610,0.002,3768.7,3768.6,15.08723322]
[1753072522777,1e-08,3768.7,3768.6,15.65633322]
[1753072522979,0.02,3768.9,3768.8,2.65336446]
[1753072523176,1e-08,3769.0,3768.9,3.55]
[1753072523517,1e-08,3769.0,3768.9,12.35059406]
[1753072523696,1e-08,3769.0,3768.9,14.97812799]
[1753072528133,1e-08,3769.0,3768.9,19.09812799]
[1753072531136,1e-08,3769.0,3768.9,14.97812799]
[1753072531442,1e-08,3769.4,3769.3,6.98181249]
[1753072531628,1e-08,3769.4,3769.3,14.75485104]
[1753072531942,1e-08,3769.4,3769.3,17.33006223]
[1753072532437,1e-08,3769.4,3769.3,17.32906223]
[1753072533268,0.002,3769.6,3769.5,3.20287173]
[1753072533438,1e-08,3769.6,3769.5,11.12620044]
[1753072533630,1e-08,3769.6,3769.5,15.32281028]
[1753072533824,1e-08,3769.6,3769.5,17.34112598]
[1753072534458,1e-08,3769.6,3769.5,12.78602598]
[1753072534671,1e-08,3769.6,3769.5,7.80318743]
[1753072534826,1e-08,3769.6,3769.5,2.78487173]
[1753072534827,1.21660001,3769.6,3769.5,2.78487173]
[1753072535154,1.21660001,3769.6,3769.5,0.132]
[1753072535494,1.21660001,3769.6,3769.4,4.117]
[1753072535772,1e-08,3769.6,3769.5,6.90187173]
[1753072535983,1e-08,3769.6,3769.5,8.22541221]
[1753072536945,1e-08,3769.6,3769.5,8.66251221]
[1753072537148,1e-08,3769.6,3769.5,9.45101221]
[1753072537666,1e-08,3769.6,3769.5,10.00101221]
[1753072537869,1e-08,3769.6,3769.5,9.56391221]
[1753072538580,1e-08,3769.6,3769.5,10.00101221]
[1753072538871,1e-08,3769.6,3769.5,10.00001221]
[1753072540167,1e-08,3769.6,3769.5,5.88401221]
[1753072540470,1e-08,3769.6,3769.5,10.00001221]
[1753072540976,1e-08,3769.8,3769.7,3.20273098]
[1753072541173,2.65140833,3771.6,3769.7,3.20273098]
[1753072541174,0.4333,3771.2,3770.5,0.55]
[1753072541479,0.4333,3771.2,3771.1,2.65174617]
[1753072541655,0.4333,3771.2,3771.1,6.89874617]
[1753072542848,0.4333,3771.2,3771.1,0.132]
[1753072543039,1.2569,3771.2,3770.9,0.132]
[1753072543236,0.8236,3771.0,3770.9,4.115]
[1753072543452,0.8236,3771.0,3770.4,2.65219355]
[1753072543453,1.2569,3771.0,3770.6,0.132]
[1753072543652,0.4333,3770.9,3770.7,4.115]
[1753072544686,0.4333,3770.9,3770.6,0.132]
[1753072544843,0.4333,3770.8,3770.7,4.114]
[1753072547980,0.4333,3770.8,3770.6,2.78409424]
[1753072548151,0.8236,3771.0,3770.6,2.78409424]
[1753072548449,0.4333,3770.9,3770.6,2.78409424]
[1753072548649,0.4333,3770.8,3770.6,2.78409424]
[1753072549748,2.65216814,3770.5,3770.4,0.132]
[1753072549946,2.65216814,3770.5,3769.2,4.76]
[1753072549947,3.45262656,3770.2,3769.8,0.132]
[1753072550141,3.45262656,3770.2,3769.2,2.65306865]
[1753072550142,0.8002,3770.0,3769.7,4.113]
[1753072550646,1.2335,3770.0,3769.8,2.78464318]
[1753072550959,0.4333,3769.9,3769.8,2.78464318]
[1753072551160,0.4333,3769.9,3769.8,0.132]
[1753072551561,0.4333,3769.9,3769.7,2.65269846]
[1753072551768,0.4333,3769.9,3769.8,2.65266061]
[1753072552261,0.4333,3769.9,3769.7,2.65273022]
[1753072552457,0.8002,3770.0,3769.7,2.65273022]
[1753072552670,0.4333,3769.9,3769.7,2.65273022]
[1753072552977,0.4333,3769.8,3769.7,2.65273022]
[1753072553178,0.4333,3769.8,3769.6,4.244]
[1753072553368,0.4333,3769.7,3769.6,6.89680135]
[1753072555262,0.8002,3770.0,3769.6,0.132]
[1753072555483,0.773,3769.8,3769.4,2.65292475]
[1753072555677,0.4333,3769.7,3769.5,2.65285514]
[1753072556090,0.4333,3769.6,3769.3,2.6540102]
[1753072556309,0.4333,3769.5,3769.4,4.112]
[1753072557322,0.4333,3769.5,3769.4,6.76494211]
[1753072559097,0.4333,3769.5,3769.4,4.112]
[1753072560510,0.4333,3769.5,3769.4,6.76494211]
[1753072560714,0.4333,3769.5,3769.4,6.76394211]
[1753072562684,0.4333,3769.5,3769.4,4.111]
[1753072563085,0.4333,3769.5,3769.4,6.76394211]
[1753072563607,1.3383,3769.8,3769.5,2.65285828]
[1753072563816,0.4333,3769.7,3769.3,0.001]
[1753072564223,0.8159,3769.6,3769.3,0.001]
[1753072564608,3.42991529,3769.5,3769.3,0.001]
[1753072564818,0.909,3769.4,3769.3,0.001]
[1753072565023,1.3423,3769.4,3769.3,0.001]
[1753072565387,0.909,3769.4,3769.3,2.65401249]
[1753072565593,0.777,3769.7,3769.3,2.65401249]
[1753072565793,0.777,3769.7,3769.4,2.65294211]
[1753072566231,0.4333,3769.6,3769.3,2.65399383]
[1753072566430,0.4333,3769.5,3769.3,0.001]
[1753072566628,0.4333,3769.5,3769.4,2.65294211]
[1753072567024,0.909,3769.7,3769.3,2.65398583]
[1753072567231,0.4333,3769.6,3769.4,2.65293373]
[1753072567531,1.2103,3769.7,3769.5,2.65282798]
[1753072567919,1.2103,3769.7,3769.4,2.6529144]
[1753072568098,0.4333,3769.6,3769.4,2.6529144]
[1753072568297,0.4333,3769.6,3769.5,2.65287173]
[1753072568899,0.777,3769.7,3769.6,2.65280135]
[1753072569137,0.777,3769.7,3769.5,2.65285037]
[1753072569325,1.2103,3769.7,3769.5,2.65285037]
[1753072570637,0.134,3769.9,3769.3,6.76401115]
[1753072570837,0.134,3769.9,3769.5,2.65280938]
[1753072571206,0.6031,3769.9,3769.5,2.65280938]
[1753072571406,0.4691,3769.8,3769.6,2.65279407]
[1753072571606,0.4691,3769.8,3769.5,2.65284365]
[1753072573308,0.4691,3769.7,3769.5,2.65284365]
[1753072573650,0.002,3769.9,3769.6,2.65279784]
[1753072573943,0.002,3769.9,3769.7,2.65272001]
[1753072574509,0.002,3769.9,3769.8,2.65266061]
[1753072577539,0.002,3769.9,3769.8,3.85807235]
[1753072578640,0.002,3769.9,3769.8,3.36214575]
[1753072579044,0.002,3769.9,3769.8,7.47014575]
[1753072579226,0.002,3769.9,3769.8,2.78466061]
[1753072579432,0.4711,3769.9,3769.8,6.89266061]
[1753072579661,1.2262,3769.9,3769.7,6.76072632]
[1753072579819,0.4691,3769.8,3769.7,4.108]
[1753072580026,0.4691,3769.8,3769.6,0.001]
[1753072580238,0.4691,3769.7,3769.6,0.001]
[1753072582328,0.8891,3769.9,3769.6,0.001]
[1753072582528,0.8891,3769.9,3769.6,2.65378824]
[1753072582739,0.8891,3769.9,3769.6,0.001]
[1753072583071,0.4691,3769.8,3769.6,0.001]
[1753072583362,3.12178017,3769.8,3769.6,0.001]
[1753072583762,0.4691,3769.7,3769.6,0.001]
[1753072586763,3.12183098,3769.7,3769.6,0.001]
[1753072586931,3.91183098,3769.7,3769.6,0.001]
[1753072590574,8.01783098,3769.7,3769.6,0.001]
[1753072596812,8.56783098,3769.7,3769.6,0.001]
[1753072596997,11.56783098,3769.7,3769.6,0.001]
[1753072598597,6.91183098,3769.7,3769.6,0.001]
[1753072598761,7.54773098,3769.7,3769.6,0.001]
[1753072598958,4.104,3769.7,3769.6,0.001]
[1753072599464,4.104,3769.7,3769.6,0.4704]
[1753072600931,4.104,3769.7,3769.6,0.001]
[1753072602094,0.132,3769.8,3769.6,0.001]
[1753072604015,0.132,3769.8,3769.6,0.4298]
[1753072604636,0.132,3769.8,3769.6,0.001]
[1753072605627,0.132,3769.8,3769.6,0.4298]
[1753072605828,0.132,3769.8,3769.6,0.001]
[1753072606913,2.65273098,3769.7,3769.6,0.001]
[1753072607229,0.132,3769.8,3769.6,0.001]
[1753072607434,0.4338,3769.7,3769.6,0.001]
[1753072609744,3.08653098,3769.7,3769.6,0.001]
[1753072610929,0.4338,3769.7,3769.6,0.001]
[1753072611869,8.01853098,3769.7,3769.6,0.001]
[1753072614047,7.18853098,3769.7,3769.6,0.001]
[1753072614366,6.75473098,3769.7,3769.6,0.001]
[1753072614556,4.102,3769.7,3769.6,0.001]
[1753072615674,0.002,3769.9,3769.7,2.65273098]
[1753072615675,4.103,3769.9,3769.7,2.65273098]
[1753072615875,4.103,3769.9,3769.8,1.00233438]
[1753072616175,4.103,3769.9,3769.8,0.4288]
[1753072616878,4.103,3769.9,3769.6,3.08258502]
[1753072617866,4.103,3769.9,3769.6,0.001]
[1753072618254,4.5368,3769.9,3769.6,0.001]
[1753072619089,4.103,3769.9,3769.6,0.001]
[1753072620482,4.103,3769.9,3769.6,0.4298]
[1753072620885,4.103,3769.9,3769.7,2.65268856]
[1753072621062,4.103,3769.9,3769.6,0.001]
[1753072621063,4.103,3769.9,3769.8,0.4288]
[1753072621707,4.103,3769.9,3769.6,0.001]
[1753072622001,4.103,3769.9,3769.6,3.74933902]
[1753072623201,4.103,3769.9,3769.6,1.09654377]
[1753072623402,4.103,3769.9,3769.6,0.001]
[1753072624498,4.103,3769.9,3769.6,2.65380032]
[1753072624881,4.103,3769.9,3769.6,0.001]
[1753072627104,6.75561626,3769.9,3769.6,0.001]
[1753072627281,7.18941626,3769.9,3769.6,0.001]
[1753072627695,2.65266334,3769.8,3769.6,0.001]
[1753072627875,0.8198,3769.7,3769.6,0.001]
[1753072628206,3.90633098,3769.7,3769.6,0.001]
[1753072628403,8.00433098,3769.7,3769.6,0.001]
[1753072628969,7.99083098,3769.7,3769.6,0.001]
[1753072629390,8.54083098,3769.7,3769.6,0.001]
[1753072632228,11.54083098,3769.7,3769.6,0.001]
[1753072641342,7.44283098,3769.7,3769.6,0.001]
[1753072641549,2.65273098,3769.7,3769.6,0.001]
[1753072641753,4.096,3769.7,3769.6,0.001]
[1753072642061,6.74873098,3769.7,3769.6,0.4637]
[1753072642423,0.132,3769.8,3769.6,0.4637]
[1753072642646,4.095,3769.7,3769.6,0.001]
[1753072642847,4.095,3769.7,3769.6,0.4637]
[1753072643425,4.095,3769.7,3769.6,0.001]
[1753072643751,8.09083098,3769.7,3769.6,0.001]
[1753072643954,8.56043098,3769.7,3769.6,0.001]
[1753072647955,11.56043098,3769.7,3769.6,0.001]
[1753072651564,11.09083098,3769.7,3769.6,0.001]
[1753072652165,11.56043098,3769.7,3769.6,0.001]
[1753072654068,2.65273098,3769.7,3769.6,0.001]
[1753072654371,6.74673098,3769.7,3769.6,0.001]
[1753072657172,2.78466979,3769.8,3769.6,0.001]
[1753072657342,6.74573098,3769.7,3769.6,0.4637]
[1753072657542,6.74573098,3769.7,3769.6,0.001]
[1753072657742,6.74573098,3769.7,3769.6,0.4637]
[1753072659134,4.093,3769.7,3769.6,0.4637]
[1753072660789,6.74573098,3769.7,3769.6,0.4637]
[1753072661336,0.132,3769.8,3769.6,1.2929]
[1753072661561,4.094,3769.9,3769.8,0.8292]
[1753072661869,4.094,3769.9,3769.8,4.59290511]
[1753072662073,0.002,3769.9,3769.8,4.59290511]
[1753072663050,0.002,3769.9,3769.8,4.56110511]
[1753072663342,0.002,3769.9,3769.8,4.69310511]
[1753072666595,0.002,3769.9,3769.8,2.0404445]
[1753072666797,0.002,3769.9,3769.8,1.2354]
[1753072668697,0.002,3769.9,3769.8,3.88806061]
[1753072668882,0.002,3769.9,3769.8,4.02006061]
[1753072669266,0.002,3769.9,3769.8,1.2354]
[1753072671765,0.002,3769.9,3769.8,3.88806061]
[1753072671992,0.002,3769.9,3769.8,4.9643458]
[1753072672503,0.002,3769.9,3769.8,4.9908724]
[1753072672803,0.002,3769.9,3769.8,5.0963458]
[1753072676502,0.002,3769.9,3769.7,4.088]
[1753072676801,2.65273098,3769.7,3769.6,0.001]
[1753072677412,3.11033098,3769.7,3769.6,0.001]
[1753072680914,3.89883098,3769.7,3769.6,0.001]
[1753072681116,3.44123098,3769.7,3769.6,0.001]
[1753072681985,3.89883098,3769.7,3769.6,0.001]
[1753072682210,2.65273098,3769.7,3769.6,0.001]
[1753072683513,3.11943098,3769.7,3769.6,0.001]
[1753072684117,2.65273098,3769.7,3769.6,0.001]
[1753072684327,3.11943098,3769.7,3769.6,0.001]
[1753072684897,2.65273098,3769.7,3769.6,0.001]
[1753072685215,6.73973098,3769.7,3769.6,0.001]
[1753072687193,7.20643098,3769.7,3769.6,0.001]
[1753072688404,10.75643098,3769.7,3769.6,0.001]
[1753072688605,11.54013098,3769.7,3769.6,0.001]
[1753072691623,5.65273098,3769.7,3769.6,0.001]
[1753072691940,9.73873098,3769.7,3769.6,0.001]
[1753072692380,10.19503098,3769.7,3769.6,0.001]
[1753072694322,9.73873098,3769.7,3769.6,0.001]
[1753072696996,4.086,3769.7,3769.6,0.001]
[1753072697191,4.086,3769.7,3769.6,0.4498]
[1753072697500,4.084,3769.7,3769.6,0.4498]
[1753072697705,4.084,3769.7,3769.6,0.84222207]
[1753072699733,0.132,3769.8,3769.6,0.84222207]
[1753072699897,0.132,3769.8,3769.6,0.39342207]
[1753072700225,0.132,3769.8,3769.7,0.4488]
[1753072700423,0.002,3769.9,3769.7,0.4488]
[1753072700611,0.002,3769.9,3769.8,0.788]
[1753072701128,0.002,3769.9,3769.8,1.2368]
[1753072701654,0.002,3769.9,3769.6,1.18322207]
[1753072702000,2.65273098,3769.7,3769.6,0.001]
[1753072702209,6.73573098,3769.7,3769.6,0.001]
[1753072703041,7.19203098,3769.7,3769.6,0.001]
[1753072705248,6.73573098,3769.7,3769.6,0.001]
[1753072706656,4.083,3769.7,3769.6,0.001]
[1753072706821,4.083,3769.7,3769.6,0.4498]
[1753072712205,4.083,3769.7,3769.6,0.001]
[1753072712411,6.73573098,3769.7,3769.6,0.001]
[1753072712812,8.00983098,3769.7,3769.6,0.001]
[1753072713553,6.73573098,3769.7,3769.6,0.001]
[1753072716036,4.083,3769.7,3769.6,0.001]
[1753072720899,6.73573098,3769.7,3769.6,0.001]
[1753072721061,7.20653098,3769.7,3769.6,0.001]
[1753072722362,8.02883098,3769.7,3769.6,0.001]
[1753072726656,7.55803098,3769.7,3769.6,0.001]
[1753072726866,6.73573098,3769.7,3769.6,0.001]
[1753072728492,0.132,3769.8,3769.6,0.001]
[1753072728702,0.132,3769.8,3769.6,0.4759]
[1753072728703,4.078,3769.7,3769.6,0.4759]
[1753072729848,4.078,3769.7,3769.6,1.26]
[1753072730366,4.21,3769.8,3769.6,1.26]
[1753072730565,4.21,3769.8,3769.7,0.4749]
[1753072731388,6.86267702,3769.8,3769.6,0.001]
[1753072731944,4.21,3769.8,3769.6,0.001]
[1753072733981,4.21,3769.8,3769.7,0.4749]
[1753072735354,4.21,3769.8,3769.7,3.12763098]
[1753072735662,4.21,3769.8,3769.7,4.20919408]
[1753072735861,0.132,3769.8,3769.7,4.20919408]
[1753072736084,0.002,3769.9,3769.8,2.65266061]
[1753072736313,0.002,3769.9,3769.8,3.12756061]
[1753072736517,0.002,3769.9,3769.8,3.95426061]
[1753072736808,0.002,3769.9,3769.8,4.65954608]
[1753072737107,0.002,3769.9,3769.8,4.79154608]
[1753072738608,0.002,3769.9,3769.8,7.81807268]
[1753072738814,0.002,3769.9,3769.8,7.79154608]
[1753072739199,0.002,3769.9,3769.8,4.79154608]
[1753072740975,0.002,3769.9,3769.8,2.13888547]
[1753072741181,0.002,3769.9,3769.7,2.96558223]
[1753072741182,0.002,3769.9,3769.6,0.001]
[1753072741485,0.002,3769.9,3769.6,0.6079]
[1753072741684,0.002,3769.9,3769.6,0.001]
[1753072741889,0.132,3769.7,3769.6,0.001]
[1753072742616,0.002,3769.9,3769.6,0.001]
[1753072742617,0.002,3769.9,3769.7,0.7747]
[1753072742815,2.6546019,3769.9,3769.6,0.001]
[1753072743019,0.134,3769.9,3769.6,0.001]
[1753072743524,2.78659341,3769.9,3769.6,0.001]
[1753072743726,0.134,3769.9,3769.6,0.001]
[1753072743926,2.78659184,3769.9,3769.6,0.001]
[1753072744226,0.134,3769.9,3769.6,0.001]
[1753072744413,0.134,3769.9,3769.6,0.4759]
[1753072744728,0.134,3769.9,3769.6,0.001]
[1753072744889,2.7865971,3769.9,3769.6,0.001]
[1753072746561,2.65273098,3769.7,3769.6,0.001]
[1753072746720,6.72673098,3769.7,3769.6,0.001]
[1753072746919,7.19753098,3769.7,3769.6,0.001]
[1753072747114,8.02963098,3769.7,3769.6,0.001]
[1753072747315,11.02963098,3769.7,3769.6,0.001]
[1753072749045,11.57963098,3769.7,3769.6,0.001]
[1753072752240,6.95563098,3769.7,3769.6,0.001]
[1753072752560,2.65273098,3769.7,3769.6,0.001]
[1753072752766,4.074,3769.7,3769.6,0.001]
[1753072753073,4.074,3769.7,3769.6,0.4363]
[1753072753074,6.72673098,3769.7,3769.6,0.4363]
[1753072755368,4.074,3769.7,3769.6,0.4363]
[1753072756383,6.72673098,3769.7,3769.6,0.4363]
[1753072756984,4.074,3769.7,3769.6,0.4363]
[1753072759467,6.72673098,3769.7,3769.6,0.4363]
[1753072759668,6.72673098,3769.7,3769.6,0.001]
[1753072761005,7.16203098,3769.7,3769.6,0.001]
[1753072761624,6.72673098,3769.7,3769.6,0.001]
[1753072764119,7.16203098,3769.7,3769.6,0.001]
[1753072767930,7.95193098,3769.7,3769.6,0.001]
[1753072768104,11.50193098,3769.7,3769.6,0.001]
[1753072769848,6.44263098,3769.7,3769.6,0.001]
[1753072770023,10.51363098,3769.7,3769.6,0.001]
[1753072770703,10.94893098,3769.7,3769.6,0.001]
[1753072775635,6.72373098,3769.7,3769.6,0.001]
[1753072778036,7.92353098,3769.7,3769.6,0.001]
[1753072778232,7.48823098,3769.7,3769.6,0.001]
[1753072778437,6.72373098,3769.7,3769.6,0.001]
[1753072782656,4.071,3769.7,3769.6,0.001]
[1753072782858,4.071,3769.7,3769.6,0.4724]
[1753072783363,4.069,3769.7,3769.6,0.4724]
[1753072785649,4.069,3769.8,3769.6,0.4724]
[1753072785854,2.65273098,3769.7,3769.6,0.001]
[1753072786056,6.72167928,3769.8,3769.6,0.001]
[1753072786267,4.069,3769.8,3769.6,0.001]
[1753072786568,4.069,3769.8,3769.6,0.4724]
[1753072786764,6.72166442,3769.8,3769.6,0.4724]
[1753072786965,2.65273098,3769.7,3769.6,0.001]
[1753072787167,4.069,3769.8,3769.6,0.001]
[1753072787462,4.069,3769.8,3769.6,0.4724]
[1753072787668,0.132,3769.7,3769.6,0.001]
[1753072788450,0.132,3769.7,3769.6,0.4724]
[1753072794161,2.78473098,3769.7,3769.6,0.001]
[1753072794553,0.132,3769.7,3769.6,0.001]
[1753072795076,2.78473098,3769.7,3769.6,0.001]
[1753072795279,3.25793098,3769.7,3769.6,0.001]
[1753072795982,2.78473098,3769.7,3769.6,0.001]
[1753072799522,0.132,3769.7,3769.6,0.001]
[1753072799798,2.78473098,3769.7,3769.6,0.001]
[1753072800168,3.25793098,3769.7,3769.6,0.001]
[1753072802711,2.78473098,3769.7,3769.6,0.001]
[1753072802914,3.25793098,3769.7,3769.6,0.001]
[1753072803108,2.78473098,3769.7,3769.6,0.001]
[1753072803273,4.198,3769.7,3769.6,0.001]
[1753072803477,6.85073098,3769.7,3769.6,0.4724]
[1753072803774,6.85073098,3769.7,3769.6,0.001]
[1753072804175,4.198,3769.7,3769.6,0.001]
[1753072804576,6.85073098,3769.7,3769.6,0.001]
[1753072806468,4.198,3769.7,3769.6,0.001]
[1753072807192,6.85073098,3769.7,3769.6,0.001]
[1753072807406,4.198,3769.7,3769.6,0.001]
[1753072809288,6.85073098,3769.7,3769.6,0.001]
[1753072809982,4.198,3769.7,3769.6,0.001]
[1753072810209,4.197,3769.7,3769.6,0.4724]
[1753072812618,4.197,3769.7,3769.6,0.001]
[1753072813022,6.84973098,3769.7,3769.6,0.001]
[1753072813528,4.197,3769.7,3769.6,0.001]
[1753072813826,4.196,3769.7,3769.6,1.3031]
[1753072818691,4.196,3769.7,3769.6,0.001]
[1753072819434,4.196,3769.7,3769.6,0.4752]
[1753072821269,0.002,3769.9,3769.6,7.16988316]
[1753072821474,0.002,3769.9,3769.8,3.46416061]
[1753072821932,0.002,3769.9,3769.8,3.93836061]
[1753072825767,0.002,3769.9,3769.8,6.96488721]
[1753072825973,1e-08,3769.9,3769.8,9.26061739]
[1753072826143,0.002,3770.8,3770.7,3.47272747]
[1753072826330,0.002,3770.8,3770.7,7.15073948]
[1753072826535,0.002,3770.8,3770.7,11.66041921]